fUST/lending_fUST_20260228
["ID","MTS","AMOUNT","RATE_DAILY","PERIOD"]
[406900969,1772267561640,-968.49,0.00018904,2]
[406900970,1772267561649,-500.0,0.00018904,2]
[406900971,1772267561659,-1587.58,0.00018904,2]
[406900972,1772267561669,-2416.57,0.00018904,2]
[406900973,1772267561678,-647.96,0.00018904,2]
[406900974,1772267561688,-8070.28,0.00018904,2]
[406900975,1772267561698,-731.15,0.00018904,2]
[406900976,1772267561708,-500.0,0.00018904,2]
[406900977,1772267561718,-1997.06,0.00018904,2]
[406900978,1772267561728,-3186.98,0.00018904,2]
[406900979,1772267561738,-3896.0,0.00018904,2]
[406900980,1772267561749,-527.94,0.00018904,2]
[406900981,1772267561758,-7025.66,0.00018904,2]
[406900982,1772267561769,-500.0,0.00018904,2]
[406900983,1772267561778,-682.38,0.00018904,2]
[406900984,1772267561788,-728.78,0.00018904,2]
[406900985,1772267561797,-659.28,0.00018904,2]
[406900986,1772267561811,-898.93,0.00018904,2]
[406900987,1772267561821,-793.11,0.00018904,2]
[406900988,1772267561831,-1706.3,0.00018904,2]
[406900989,1772267561841,-659.85,0.00018904,2]
[406900990,1772267561850,-1134.79,0.00018904,2]
[406900991,1772267561859,-11125.25,0.00018904,2]
[406900992,1772267561870,-7153.51,0.00018904,2]
[406900993,1772267561880,-648.35,0.00018904,2]
[406900994,1772267561889,-5078.3,0.00018904,2]
[406900995,1772267561899,-683.43,0.00018904,2]
[406900996,1772267561909,-2723.16,0.00018904,2]
[406900997,1772267561918,-4724.28,0.00018904,2]
[406900998,1772267561928,-739.63,0.00018904,2]
[406900999,1772267561937,-500.0,0.00018904,2]
[406901000,1772267561947,-4297.64,0.00018904,2]
[406901001,1772267561956,-989.6,0.00018904,2]
[406901002,1772267561966,-737.38,0.00018904,2]
[406901003,1772267561975,-2549.64,0.00018904,2]
[406901004,1772267561985,-1171.08,0.00018904,2]
[406901005,1772267561994,-2640.18,0.00018904,2]
[406901006,1772267562003,-7472.22,0.00018904,2]
[406901007,1772267562012,-530.37,0.00018904,2]
[406901008,1772267562022,-1765.65,0.00018904,2]
[406901009,1772267562031,-1444.95,0.00018904,2]
[406901010,1772267562041,-4088.91,0.00018904,2]
[406901011,1772267562053,-2774.65,0.00018904,2]
[406901012,1772267562063,-3783.55,0.00018904,2]
[406901013,1772267562073,-2445.15,0.00018904,2]
[406901014,1772267562082,-1333.68,0.00018904,2]
[406901015,1772267562091,-14153.91,0.00018904,2]
[406901016,1772267562100,-500.0,0.00018904,2]
[406901017,1772267562110,-3218.57,0.00018904,2]
[406901018,1772267562120,-2092.55,0.00018904,2]
[406901019,1772267562130,-2893.22,0.00018904,2]
[406901020,1772267562141,-2259.28,0.00018904,2]
[406901021,1772267562152,-1798.11,0.00018904,2]
[406901022,1772267562163,-540.91,0.00018904,2]
[406901023,1772267562173,-500.0,0.00018904,2]
[406901024,1772267562183,-16752.77,0.00018904,2]
[406901025,1772267562195,-526.47,0.00018904,2]
[406901026,1772267562205,-1638.09,0.00018904,2]
[406901027,1772267562215,-4470.34,0.00018904,2]
[406901028,1772267562227,-2160.15,0.00018904,2]
[406901029,1772267562237,-611.61,0.00018904,2]
[406901030,1772267562246,-587.54,0.00018904,2]
[406901031,1772267562256,-500.97,0.00018904,2]
[406901032,1772267562266,-679.97,0.00018904,2]
[406901033,1772267562276,-62454.68,0.00018904,2]
[406901034,1772267562286,-4931.54,0.00018904,2]
[406901035,1772267562296,-691.25,0.00018904,2]
[406901036,1772267562308,-2603.07,0.00018904,2]
[406901037,1772267562318,-7026.09,0.00018904,2]
[406901038,1772267562328,-668.0,0.00018904,2]
[406901039,1772267562337,-1193.68,0.00018904,2]
[406901040,1772267562346,-635.83,0.00018904,2]
[406901041,1772267562357,-1018.54,0.00018904,2]
[406901042,1772267562367,-8795.12,0.00018904,2]
[406901043,1772267562377,-2059.67,0.00018904,2]
[406901044,1772267562387,-511.19,0.00018904,2]
[406901045,1772267562397,-4120.89,0.00018904,2]
[406901046,1772267562406,-2791.04,0.00018904,2]
[406901047,1772267562416,-738.7,0.00018904,2]
[406901048,1772267562426,-858.19,0.00018904,2]
[406901049,1772267562436,-1558.46,0.00018904,2]
[406901050,1772267562447,-3104.3,0.00018904,2]
[406901051,1772267562457,-500.0,0.00018904,2]
[406901052,1772267562467,-4305.9,0.00018904,2]
[406901053,1772267562477,-1079.08,0.00018904,2]
[406901054,1772267562487,-17553.64,0.00018904,2]
[406901055,1772267562497,-829.59,0.00018904,2]
[406901056,1772267562507,-1590.25,0.00018904,2]
[406901057,1772267562518,-1094.77,0.00018904,2]
[406901058,1772267562528,-41294.65,0.00018904,2]
[406901059,1772267562537,-836.94,0.00018904,2]
[406901060,1772267562547,-2501.06,0.00018904,2]
[406901061,1772267562558,-624.89,0.00018904,2]
[406901062,1772267562568,-500.0,0.00018904,2]
[406901063,1772267562578,-587.66,0.00018904,2]
[406901064,1772267562588,-612.52,0.00018904,2]
[406901065,1772267562597,-920.96,0.00018904,2]
[406901066,1772267562606,-798.52,0.00018904,2]
[406901067,1772267562616,-833.23,0.00018904,2]
[406901068,1772267562625,-502.1,0.00018904,2]
[406901069,1772267562635,-1661.19,0.00018904,2]
[406901070,1772267562645,-884.15,0.00018904,2]
[406901071,1772267562655,-997.87,0.00018904,2]
[406901072,1772267562665,-2806.98,0.00018904,2]
[406901073,1772267562675,-714.12,0.00018904,2]
[406901074,1772267562684,-3389.85,0.00018904,2]
[406901075,1772267562693,-500.0,0.00018904,2]
[406901076,1772267562703,-736.98,0.00018904,2]
[406901077,1772267562712,-3040.54,0.00018904,2]
[406901078,1772267562721,-1624.77,0.00018904,2]
[406901079,1772267562731,-8862.41,0.00018904,2]
[406901080,1772267562740,-21682.96,0.00018904,2]
[406901081,1772267562749,-1097.26,0.00018904,2]
[406901082,1772267562758,-7502.8,0.00018904,2]
[406901083,1772267562768,-565.02,0.00018904,2]
[406901084,1772267562777,-6625.37,0.00018904,2]
[406901085,1772267562787,-2462.23,0.00018904,2]
[406901086,1772267562796,-1430.4,0.00018904,2]
[406901087,1772267562806,-1591.21,0.00018904,2]
[406901088,1772267562816,-1097.85,0.00018904,2]
[406901089,1772267562825,-941.74,0.00018904,2]
[406901090,1772267562835,-2991.59,0.00018904,2]
[406901091,1772267562845,-1208.52,0.00018904,2]
[406901092,1772267562854,-1852.72,0.00018904,2]
[406901093,1772267562864,-2739.1,0.00018904,2]
[406901094,1772267562873,-3806.49,0.00018904,2]
[406901095,1772267562883,-7703.07,0.00018904,2]
[406901096,1772267562893,-515.24,0.00018904,2]
[406901097,1772267562902,-1269.75,0.00018904,2]
[406901098,1772267562911,-2065.59,0.00018904,2]
[406901099,1772267562921,-1723.78,0.00018904,2]
[406901100,1772267562930,-2115.78,0.00018904,2]
[406901101,1772267562941,-1897.54,0.00018904,2]
[406901102,1772267562950,-3092.48,0.00018904,2]
[406901103,1772267562960,-922.16,0.00018904,2]
[406901104,1772267562969,-1034.45,0.00018904,2]
[406901105,1772267562979,-4771.37,0.00018904,2]
[406901106,1772267562988,-500.0,0.00018904,2]
[406901107,1772267562997,-1231.85,0.00018904,2]
[406901108,1772267563007,-350.0,0.00018904,2]
[406901109,1772267563017,-158.18,0.00018937,2]
[406901110,1772267563027,-10014.0,0.00018979,7]
[406901111,1772267563036,-2603.49,0.00019,2]
[406901112,1772267563045,-24580.63862293,0.00019,2]
[406901113,1772267563056,-2547.0,0.00019007,7]
[406901114,1772267563066,-10000.0,0.00019009,7]
[406901115,1772267563076,-10000.0,0.00019009,7]
[406901116,1772267563085,-10000.0,0.00019009,7]
[406901117,1772267563094,-10000.0,0.00019009,7]
[406901118,1772267563104,-10000.0,0.00019009,7]
[406901119,1772267563113,-4032.0,0.00019009,7]
[406901120,1772267563123,-939.8342441,0.00019023,23]
[406901121,1772267563132,-334.04164818,0.0001908,32]
[406901122,1772267563144,-774.55632952,0.00019177,2]
[406901123,1772267563154,-324.3,0.00019178,2]
[406901124,1772267563163,-607.58,0.00019178,2]
[406901125,1772267563173,-980.59,0.00019178,2]
[406901126,1772267563183,-1353.85,0.00019178,2]
[406901127,1772267563194,-1322.07,0.00019178,2]
[406901128,1772267563204,-692.0,0.00019178,2]
[406901129,1772267563215,-564.22,0.00019178,2]
[406901130,1772267563225,-520.93,0.00019178,2]
[406901131,1772267563235,-190.15342662,0.00019178,2]
[406901132,1772267563244,-1711.44,0.00019178,2]
[406901133,1772267563253,-2726.35,0.00019178,2]
[406901134,1772267563263,-1744.45,0.00019178,2]
[406901135,1772267563273,-1041.8,0.00019178,2]
[406901136,1772267563283,-737.4,0.00019178,2]
[406901137,1772267563292,-2718.46,0.00019178,2]
[406901138,1772267563303,-770.65,0.00019178,2]
[406901139,1772267563313,-902.4,0.00019178,2]
[406901140,1772267563322,-989.47,0.00019178,2]
[406901141,1772267563332,-558.27,0.00019178,2]
[406901142,1772267563342,-603.96,0.00019178,2]
[406901143,1772267563352,-500.58,0.00019178,2]
[406901144,1772267563362,-2062.12,0.00019178,2]
[406901145,1772267563371,-719.5,0.00019178,2]
[406901146,1772267563381,-525.56,0.00019178,2]
[406901147,1772267563391,-546.89,0.00019178,2]
[406901148,1772267563401,-1727.31,0.00019178,2]
[406901149,1772267563410,-514.02,0.00019178,2]
[406901150,1772267563420,-860.84,0.00019178,2]
[406901151,1772267563430,-955.26,0.00019178,2]
[406901152,1772267563440,-500.0,0.00019178,2]
[406901153,1772267563450,-725.73,0.00019178,2]
[406901154,1772267563460,-914.38,0.00019178,2]
[406901155,1772267563470,-1116.21,0.00019178,2]
[406901156,1772267563480,-579.95,0.00019178,2]
[406901157,1772267563490,-1326.22,0.00019178,2]
[406901158,1772267563500,-1036.26,0.00019178,2]
[406901159,1772267563511,-936.85,0.00019178,2]
[406901160,1772267563532,-547.18,0.00019178,2]
[406901161,1772267563550,-1250.68,0.00019178,2]
[406901162,1772267563561,-1196.3,0.00019178,2]
[406901163,1772267563570,-1024.08,0.00019178,2]
[406901164,1772267563580,-898.6,0.00019178,2]
[406901165,1772267563590,-609.4,0.00019178,2]
[406901166,1772267563604,-1312.05,0.00019178,2]
[406901167,1772267563614,-937.86,0.00019178,2]
[406901168,1772267563625,-651.8,0.00019178,2]
[406901169,1772267563635,-216.51912777,0.00019178,2]
[406901170,1772267563645,-500.0,0.00019178,2]
[406901171,1772267563655,-517.11,0.00019178,2]
[406901172,1772267563666,-500.0,0.00019178,2]
[406901173,1772267563676,-1446.65,0.00019178,2]
[406901174,1772267563687,-500.0,0.00019178,2]
[406901175,1772267563696,-1733.53,0.00019178,2]
[406901176,1772267563706,-1436.12,0.00019178,2]
[406901177,1772267563717,-685.31,0.00019178,2]
[406901178,1772267563727,-580.66,0.00019178,2]
[406901179,1772267563737,-571.4,0.00019178,2]
[406901180,1772267563750,-864.92,0.00019178,2]
[406901181,1772267563760,-846.6,0.00019178,2]
[406901182,1772267563770,-1593.78,0.00019178,2]
[406901183,1772267563780,-750.44,0.00019178,2]
[406901184,1772267563790,-1521.42,0.00019178,2]
[406901185,1772267563799,-1247.19,0.00019178,2]
[406901186,1772267563809,-705.82,0.00019178,2]
[406901187,1772267563819,-529.62,0.00019178,2]
[406901188,1772267563829,-383.12494161,0.00019178,2]
[406901189,1772267563839,-745.32,0.00019178,2]
[406901190,1772267563849,-1605.01,0.00019178,2]
[406901191,1772267563859,-1610.8,0.00019178,2]
[406901192,1772267563869,-1001.72,0.00019178,2]
[406901193,1772267563878,-627.88,0.00019178,2]
[406901194,1772267563888,-1059.56,0.00019178,2]
[406901195,1772267563898,-917.08,0.00019178,2]
[406901196,1772267563907,-500.0,0.00019178,2]
[406901197,1772267563917,-927.57,0.00019178,2]
[406901198,1772267563926,-529.27,0.00019178,2]
[406901199,1772267563935,-650.87,0.00019178,2]
[406901200,1772267563945,-661.99,0.00019178,2]
[406901201,1772267563955,-500.0,0.00019178,2]
[406901202,1772267563964,-1219.63,0.00019178,2]
[406901203,1772267563974,-201.82279259,0.00019178,2]
[406901204,1772267563984,-818.16,0.00019178,2]
[406901205,1772267563994,-564.11,0.00019178,2]
[406901206,1772267564006,-773.68,0.00019178,2]
[406901207,1772267564024,-500.0,0.00019178,2]
[406901208,1772267564034,-1058.67,0.00019178,2]
[406901209,1772267564043,-544.13,0.00019178,2]
[406901210,1772267564053,-478.96386746,0.00019178,2]
[406901211,1772267564062,-1354.43,0.00019178,2]
[406901212,1772267564072,-500.0,0.00019178,2]
[406901213,1772267564082,-947.35,0.00019178,2]
[406901214,1772267564092,-617.88,0.00019178,2]
[406901215,1772267564101,-577.2,0.00019178,2]
[406901216,1772267564110,-1264.55,0.00019178,2]
[406901217,1772267564120,-609.45,0.00019178,2]
[406901218,1772267564130,-787.95,0.00019178,2]
[406901219,1772267564140,-1665.88,0.00019178,2]
[406901220,1772267564151,-571.43,0.00019178,2]
[406901221,1772267564161,-7573.22,0.00019178,2]
[406901222,1772267564171,-554.61,0.00019178,2]
[406901223,1772267564180,-388.11147716,0.00019178,2]
[406901224,1772267564190,-500.0,0.00019178,2]
[406901225,1772267564201,-500.0,0.00019178,2]
[406901226,1772267564210,-1743.64,0.00019178,2]
[406901227,1772267564221,-2006.98,0.00019178,2]
[406901228,1772267564231,-647.16,0.00019178,2]
[406901229,1772267564242,-2108.79,0.00019178,2]
[406901230,1772267564252,-839.36,0.00019178,2]
[406901231,1772267564262,-878.12,0.00019178,2]
[406901232,1772267564272,-7180.71,0.00019178,2]
[406901233,1772267564282,-784.54,0.00019178,2]
[406901234,1772267564292,-696.62,0.00019178,2]
[406901235,1772267564303,-854.66,0.00019178,2]
[406901236,1772267564313,-1726.59,0.00019178,2]
[406901237,1772267564323,-1075.35,0.00019178,2]
[406901238,1772267564333,-5780.22,0.00019178,2]
[406901239,1772267564343,-1052.35,0.00019178,2]
[406901240,1772267564353,-1604.1,0.00019178,2]
[406901241,1772267564364,-617.93,0.00019178,2]
[406901242,1772267564374,-1438.35,0.00019178,2]
[406901243,1772267564385,-1671.97,0.00019178,2]
[406901244,1772267564395,-1735.94,0.00019178,2]
[406901245,1772267564406,-566.35,0.00019178,2]
[406901246,1772267564417,-695.06,0.00019178,2]
[406901247,1772267564427,-692.56,0.00019178,2]
[406901248,1772267564437,-1535.93,0.00019178,2]
[406901249,1772267564447,-1703.31,0.00019178,2]
[406901250,1772267564457,-1091.8,0.00019178,2]
[406901251,1772267564468,-526.21,0.00019178,2]
[406901252,1772267564478,-1946.78,0.00019178,2]
[406901253,1772267564489,-1093.05,0.00019178,2]
[406901254,1772267564501,-522.9,0.00019178,2]
[406901255,1772267564511,-1010.99,0.00019178,2]
[406901256,1772267564521,-597.64,0.00019178,2]
[406901257,1772267564531,-632.06,0.00019178,2]
[406901258,1772267564542,-1404.24,0.00019178,2]
[406901259,1772267564552,-3447.77,0.00019178,2]
[406901260,1772267564568,-592.02,0.00019178,2]
[406901261,1772267564776,-1639.95,0.00019178,2]
[406901262,1772267564787,-766.57,0.00019178,2]
[406901263,1772267564797,-2199.16,0.00019178,2]
[406901264,1772267564808,-515.11,0.00019178,2]
[406901265,1772267564818,-1033.14,0.00019178,2]
[406901266,1772267564828,-1309.19,0.00019178,2]
[406901267,1772267564839,-1688.18,0.00019178,2]
[406901268,1772267564849,-3009.71,0.00019178,2]
[406901269,1772267564858,-1567.57,0.00019178,2]
[406901270,1772267564868,-1039.64,0.00019178,2]
[406901271,1772267564879,-578.85,0.00019178,2]
[406901272,1772267564889,-2382.93,0.00019178,2]
[406901273,1772267564898,-2151.2,0.00019178,2]
[406901274,1772267564908,-1096.15,0.00019178,2]
[406901275,1772267564919,-683.72,0.00019178,2]
[406901276,1772267564929,-832.49,0.00019178,2]
[406901277,1772267564939,-692.6,0.00019178,2]
[406901278,1772267564949,-313.80525689,0.00019178,2]
[406901279,1772267564959,-3399.35,0.00019178,2]
[406901280,1772267564969,-865.62,0.00019178,2]
[406901281,1772267564979,-929.25,0.00019178,2]
[406901282,1772267564988,-856.18,0.00019178,2]
[406901283,1772267564998,-2559.89,0.00019178,2]
[406901284,1772267565009,-1271.22,0.00019178,2]
[406901285,1772267565019,-1063.54,0.00019178,2]
[406901286,1772267565030,-1318.72,0.00019178,2]
[406901287,1772267565040,-705.79,0.00019178,2]
[406901288,1772267565050,-2424.89,0.00019178,2]
[406901289,1772267565062,-1446.29,0.00019178,2]
[406901290,1772267565072,-2361.52,0.00019178,2]
[406901291,1772267565081,-2559.8936,0.00019178,2]
[406901292,1772267565091,-500.0,0.00019178,2]
[406901293,1772267565101,-4592.95,0.00019178,2]
[406901294,1772267565111,-2215.2,0.00019178,2]
[406901295,1772267565120,-2559.8936,0.00019178,2]
[406901296,1772267565130,-1435.8,0.00019178,2]
[406901297,1772267565141,-1576.84,0.00019178,2]
[406901298,1772267565152,-2561.33,0.00019178,2]
[406901299,1772267565162,-1085.51,0.00019178,2]
[406901300,1772267565172,-717.42,0.00019178,2]
[406901301,1772267565182,-1108.2,0.00019178,2]
[406901302,1772267565193,-2559.8936,0.00019178,2]
[406901303,1772267565203,-3100.42,0.00019178,2]
[406901304,1772267565213,-1341.93,0.00019178,2]
[406901305,1772267565225,-1305.67,0.00019178,2]
[406901306,1772267565235,-2559.8936,0.00019178,2]
[406901307,1772267565245,-1472.57,0.00019178,2]
[406901308,1772267565254,-3197.66,0.00019178,2]
[406901309,1772267565263,-2559.8936,0.00019178,2]
[406901310,1772267565273,-615.34,0.00019178,2]
[406901311,1772267565282,-561.98,0.00019178,2]
[406901312,1772267565292,-699.96,0.00019178,2]
[406901313,1772267565302,-1020.13,0.00019178,2]
[406901314,1772267565313,-1849.56,0.00019178,2]
[406901315,1772267565323,-596.63,0.00019178,2]
[406901316,1772267565333,-303.3005332,0.00019178,2]
[406901317,1772267565343,-1033.36,0.00019178,2]
[406901318,1772267565352,-359.36111201,0.00019178,2]
[406901319,1772267565362,-2312.35,0.00019178,2]
[406901320,1772267565372,-806.51,0.00019178,2]
[406901321,1772267565382,-955.01,0.00019178,2]
[406901322,1772267565392,-1522.66,0.00019178,2]
[406901323,1772267565402,-867.0,0.00019178,2]
[406901324,1772267565412,-7146.16,0.00019178,2]
[406901325,1772267565422,-500.0,0.00019178,2]
[406901326,1772267565432,-1028.35,0.00019178,2]
[406901327,1772267565441,-1008.96,0.00019178,2]
[406901328,1772267565452,-1352.59,0.00019178,2]
[406901329,1772267565461,-506.03,0.00019178,2]
[406901330,1772267565472,-2559.89,0.00019178,2]
[406901331,1772267565481,-500.0,0.00019178,2]
[406901332,1772267565491,-500.0,0.00019178,2]
[406901333,1772267565501,-500.0,0.00019178,2]
[406901334,1772267565511,-764.41,0.00019178,2]
[406901335,1772267565520,-1761.81,0.00019178,2]
[406901336,1772267565530,-2215.04,0.00019178,2]
[406901337,1772267565539,-2559.8936,0.00019178,2]
[406901338,1772267565549,-517.59,0.00019178,2]
[406901339,1772267565562,-517.41,0.00019178,2]
[406901340,1772267565571,-200.0,0.00019178,2]
[406901341,1772267565581,-963.32,0.00019178,2]
[406901342,1772267565591,-700.0,0.00019178,2]
[406901343,1772267565601,-899.12,0.00019178,2]
[406901344,1772267565611,-1300.35,0.00019178,2]
[406901345,1772267565621,-5319.48,0.00019178,2]
[406901346,1772267565631,-1252.77,0.00019178,2]
[406901347,1772267565641,-587.74,0.00019178,2]
[406901348,1772267565651,-1166.63,0.00019178,2]
[406901349,1772267565661,-899.07,0.00019178,2]
[406901350,1772267565670,-2895.24,0.00019178,2]
[406901351,1772267565680,-1068.48,0.00019178,2]
[406901352,1772267565690,-968.49,0.00019178,2]
[406901353,1772267565699,-500.0,0.00019178,2]
[406901354,1772267565709,-1587.58,0.00019178,2]
[406901355,1772267565719,-2416.57,0.00019178,2]
[406901356,1772267565729,-647.96,0.00019178,2]
[406901357,1772267565739,-8070.28,0.00019178,2]
[406901358,1772267565748,-731.15,0.00019178,2]
[406901359,1772267565758,-500.0,0.00019178,2]
[406901360,1772267565767,-1997.06,0.00019178,2]
[406901361,1772267565776,-3186.98,0.00019178,2]
[406901362,1772267565786,-3896.0,0.00019178,2]
[406901363,1772267565795,-527.94,0.00019178,2]
[406901364,1772267565805,-7025.66,0.00019178,2]
[406901365,1772267565814,-456.49723921,0.00019178,2]
[406901366,1772267565824,-682.38,0.00019178,2]
[406901367,1772267565834,-728.78,0.00019178,2]
[406901368,1772267565844,-659.28,0.00019178,2]
[406901369,1772267565854,-898.93,0.00019178,2]
[406901370,1772267565864,-793.11,0.00019178,2]
[406901371,1772267565874,-1706.3,0.00019178,2]
[406901372,1772267565883,-659.85,0.00019178,2]
[406901373,1772267565893,-1134.79,0.00019178,2]
[406901374,1772267565903,-11125.25,0.00019178,2]
[406901375,1772267565913,-7153.51,0.00019178,2]
[406901376,1772267565922,-648.35,0.00019178,2]
[406901377,1772267565932,-5078.3,0.00019178,2]
[406901378,1772267565941,-683.43,0.00019178,2]
[406901379,1772267565951,-2723.16,0.00019178,2]
[406901380,1772267565960,-500.0,0.00019178,2]
[406901381,1772267565970,-4724.28,0.00019178,2]
[406901382,1772267565980,-739.63,0.00019178,2]
[406901383,1772267565990,-380.55861796,0.00019178,2]
[406901384,1772267565999,-4297.64,0.00019178,2]
[406901385,1772267566008,-989.6,0.00019178,2]
[406901386,1772267566019,-737.38,0.00019178,2]
[406901387,1772267566028,-2549.64,0.00019178,2]
[406901388,1772267566038,-2640.18,0.00019178,2]
[406901389,1772267566048,-1171.08,0.00019178,2]
[406901390,1772267566058,-7472.22,0.00019178,2]
[406901391,1772267566068,-530.37,0.00019178,2]
[406901392,1772267566078,-1765.65,0.00019178,2]
[406901393,1772267566088,-1444.95,0.00019178,2]
[406901394,1772267566097,-4088.91,0.00019178,2]
[406901395,1772267566107,-2774.65,0.00019178,2]
[406901396,1772267566117,-3783.55,0.00019178,2]
[406901397,1772267566127,-2445.15,0.00019178,2]
[406901398,1772267566137,-1333.68,0.00019178,2]
[406901399,1772267566151,-14153.91,0.00019178,2]
[406901400,1772267566160,-500.0,0.00019178,2]
[406901401,1772267566170,-3218.57,0.00019178,2]
[406901402,1772267566179,-2893.22,0.00019178,2]
[406901403,1772267566190,-2259.28,0.00019178,2]
[406901404,1772267566200,-1798.11,0.00019178,2]
[406901405,1772267566210,-540.91,0.00019178,2]
[406901406,1772267566220,-500.0,0.00019178,2]
[406901407,1772267566230,-2092.55,0.00019178,2]
[406901408,1772267566240,-16752.77,0.00019178,2]
[406901409,1772267566250,-526.47,0.00019178,2]
[406901410,1772267566259,-1638.09,0.00019178,2]
[406901411,1772267566268,-4470.34,0.00019178,2]
[406901412,1772267566278,-2160.15,0.00019178,2]
[406901413,1772267566287,-611.61,0.00019178,2]
[406901414,1772267566297,-587.54,0.00019178,2]
[406901415,1772267566308,-500.97,0.00019178,2]
[406901416,1772267566318,-679.97,0.00019178,2]
[406901417,1772267566328,-62454.68,0.00019178,2]
[406901418,1772267566339,-4931.54,0.00019178,2]
[406901419,1772267566349,-691.25,0.00019178,2]
[406901420,1772267566358,-2603.07,0.00019178,2]
[406901421,1772267566367,-7026.09,0.00019178,2]
[406901422,1772267566377,-668.0,0.00019178,2]
[406901423,1772267566387,-1193.68,0.00019178,2]
[406901424,1772267566396,-635.83,0.00019178,2]
[406901425,1772267566406,-1018.54,0.00019178,2]
[406901426,1772267566416,-8795.12,0.00019178,2]
[406901427,1772267566426,-2059.67,0.00019178,2]
[406901428,1772267566436,-511.19,0.00019178,2]
[406901429,1772267566446,-4120.89,0.00019178,2]
[406901430,1772267566455,-2791.04,0.00019178,2]
[406901431,1772267566464,-738.7,0.00019178,2]
[406901432,1772267566474,-858.19,0.00019178,2]
[406901433,1772267566483,-1558.46,0.00019178,2]
[406901434,1772267566493,-3104.3,0.00019178,2]
[406901435,1772267566502,-270.61448835,0.00019178,2]
[406901436,1772267566512,-4305.9,0.00019178,2]
[406901437,1772267566522,-1079.08,0.00019178,2]
[406901438,1772267566532,-17553.64,0.00019178,2]
[406901439,1772267566541,-829.59,0.00019178,2]
[406901440,1772267566551,-1590.25,0.00019178,2]
[406901441,1772267566564,-1094.77,0.00019178,2]
[406901442,1772267566574,-41294.65,0.00019178,2]
[406901443,1772267566583,-836.94,0.00019178,2]
[406901444,1772267566593,-2501.06,0.00019178,2]
[406901445,1772267566603,-624.89,0.00019178,2]
[406901446,1772267566613,-214.14648113,0.00019178,2]
[406901447,1772267566623,-587.66,0.00019178,2]
[406901448,1772267566633,-612.52,0.00019178,2]
[406901449,1772267566644,-920.96,0.00019178,2]
[406901450,1772267566654,-798.52,0.00019178,2]
[406901451,1772267566664,-833.23,0.00019178,2]
[406901452,1772267566673,-502.1,0.00019178,2]
[406901453,1772267566683,-1661.19,0.00019178,2]
[406901454,1772267566693,-884.15,0.00019178,2]
[406901455,1772267566702,-997.87,0.00019178,2]
[406901456,1772267566711,-2806.98,0.00019178,2]
[406901457,1772267566720,-714.12,0.00019178,2]
[406901458,1772267566729,-3389.85,0.00019178,2]
[406901459,1772267566738,-500.0,0.00019178,2]
[406901460,1772267566748,-736.98,0.00019178,2]
[406901461,1772267566757,-3040.54,0.00019178,2]
[406901462,1772267566767,-1624.77,0.00019178,2]
[406901463,1772267566777,-8862.41,0.00019178,2]
[406901464,1772267566786,-21682.96,0.00019178,2]
[406901465,1772267566796,-1097.26,0.00019178,2]
[406901466,1772267566807,-7502.8,0.00019178,2]
[406901467,1772267566817,-565.02,0.00019178,2]
[406901468,1772267566828,-6625.37,0.00019178,2]